[Event "Women Accentus DAQ Blitz 2022"]
[Site "Biel"]
[Date "2022.07.17"]
[Round "6.2"]
[White "Moracchini, Margaux"]
[Black "Keymer, Cecilia"]
[Result "1-0"]
[ECO "C47"]
[WhiteElo "1937"]
[BlackElo "1652"]
[Annotator "TA"]
[PlyCount "140"]
[EventDate "2022.07.17"]
[EventType "tourn"]
[EventCountry "SUI"]
[SourceTitle "playchess.com"]
[Source "ChessBase"]
[SourceQuality "1"]
[TimeControl "180+2"]

{[%evp 23,140,0,0,0,0,0,0,12,14,10,9,12,29,0,4,-18,-18,-37,-19,-35,-21,-23,-5,-22,0,0,0,0,60,53,52,26,28,8,63,40,50,57,89,-105,135,0,0,0,144,0,6,0,135,122,185,35,127,0,168,140,168,152,170,167,187,113,191,138,163,119,120,118,124,81,131,120,116,86,96,90,118,116,131,0,122,0,121,0,116,119,160,166,175,113,108,100,86,0,36,28,113,58,244,241,237,251,281,277,470,472,407,344,672,635,638,629,649,596,617,624,610,597,747]} 1. e4 {[%emt 0:00:01]} e5 {[%emt 0:00:00]} 2. Nf3 {[%emt 0:00:02]} Nc6 {[%emt 0:00:01]} 3. d4 {[%emt 0:00:03]} exd4 {[%emt 0:00:01]} 4. Nxd4 {[%emt 0:00:01]} Nf6 {[%emt 0:00:01]} 5. Nc3 {[%emt 0:00:05]} Bb4 {[%emt 0:00:01]} 6. Nxc6 {[%emt 0:00:02]} bxc6 {[%emt 0:00:00]} 7. Bd3 {[%emt 0:00:04]} d5 {[%emt 0:00:04]} 8. exd5 {[%emt 0:00:02]} cxd5 {[%emt 0:00:01]} 9. O-O {[%emt 0:00:02]} O-O {[%emt 0:00:04]} 10. Bg5 {[%emt 0:00:09]} c6 {[%emt 0:00:03]} 11. Qf3 {[%emt 0:00:08]} Bd6 {[%emt 0:00:01][%cal Bb4d6,Bd6e5,Be5c7][%mdl 32] 11...h6 is the recent fashion.} 12. Bxf6 {[%emt 0:00:11]} Qxf6 {[%emt 0:00:00]} 13. Qxf6 {[%emt 0:00:01] C47: Scotch Four Knights and Four Knights with 4 g3.} gxf6 {[%emt 0:00:01]} 14. Ne2 {[%emt 0:00:41]} Rb8 {[%emt 0:00:14]} 15. b3 {[%emt 0:00:03] The position is equal.} Be5 {[%emt 0:00:06] A strong pair of Bishops.} 16. Rad1 {[%emt 0:00:10]} Be6 {[%emt 0:00:05]} 17. Ng3 {[%emt 0:00:04] [#]} Rfe8 $146 {[%emt 0:00:46]} ({Predecessor:} 17... c5 18. f4 Bd4+ 19. Kh1 Bg4 20. Rde1 Rfe8 21. Rxe8+ Rxe8 22. f5 Bc3 23. Rf4 Bd1 {1-0 (43) Terletsky,O (2313)-Bouget,A (2206) Chess.com INT 2017}) 18. Bf5 {[%emt 0:00:21]} c5 {[%emt 0:00:21]} 19. Bxe6 {[%emt 0:00:16]} fxe6 {[%emt 0:00:02]} 20. Rfe1 {[%emt 0:00:02]} Bc7 {[%emt 0:00:13]} 21. Nh5 {[%emt 0:00:13]} Kf7 {[%emt 0:00:06]} 22. Rd3 {[%emt 0:00:03]} Rg8 {[%emt 0:00:21]} 23. Rf3 {[%emt 0:00:04]} Rg6 {[%emt 0:00:05]} 24. Nf4 {[%emt 0:00:04]} Bxf4 {[%emt 0:00:09]} 25. Rxf4 $11 {[%emt 0:00:01][%mdl 4096] Endgame KRR-KRR} Re8 {[%emt 0:00:07]} (25... Rbg8 $11) 26. Ra4 $14 {[%emt 0:00:02]} Re7 $1 {[%emt 0:00:04]} 27. Ra5 {[%emt 0:00:03]} Rc7 {[%emt 0:00:01]} 28. Ra6 {[%emt 0:00:02]} f5 {[%emt 0:00:05]} ({Better is} 28... e5 $11) 29. f4 {[%emt 0:00:09]} Ke7 {[%emt 0:00:06]} 30. Kf2 {[%emt 0:00:04]} Kd7 {[%emt 0:00:13]} 31. Kf3 $2 {[%emt 0:00:03] White is more active.} (31. g3 $16) 31... Rb7 $2 {[%emt 0:00:05]} (31... e5 $1 $17 {[%cal Re5e4] and life is bright.} 32. Ra5 e4+ 33. Kf2 d4) 32. Ra5 {[%emt 0:00:05]} (32. Re5 $1 $16) 32... Kc6 $11 {[%emt 0:00:04]} 33. Ra6+ {[%emt 0:00:00]} (33. c4 $11) 33... Kd7 $16 {[%emt 0:00:03][%cal Oe6e5]} 34. Ra5 {[%emt 0:00:01]} (34. Re5 $1 $16) 34... Kc6 $11 {[%emt 0:00:00]} 35. Ra6+ (35. c4 $11) 35... Kd7 $16 {[%cal Oe6e5] [#]} 36. Re5 $1 {[%emt 0:00:13]} Rc7 {[%emt 0:00:08]} (36... c4 $16) 37. Ra5 {[%emt 0:00:05]} (37. h4 $18) 37... Kc8 {[%emt 0:00:11]} (37... Kc6 $14) 38. Ra6 {[%emt 0:00:01]} (38. c4 $16) 38... Re7 $2 {[%emt 0:00:02]} (38... Kd7 $11) 39. Rc6+ {[%emt 0:00:02]} Kb7 {[%emt 0:00:04]} 40. Rxc5 {[%emt 0:00:02]} Reg7 {[%emt 0:00:03]} 41. g3 {[%emt 0:00:01]} h5 {[%emt 0:00:03] [#]} 42. Rc3 {[%emt 0:00:06]} (42. Ke3 $1 $18) 42... Rg8 {[%emt 0:00:04]} (42... h4 $16 {was necessary.}) 43. Rce3 {[%emt 0:00:03]} (43. Ke3 $18) 43... Rc8 {[%emt 0:00:03]} 44. Re2 {[%emt 0:00:03]} Rc6 {[%emt 0:00:02]} 45. R5e3 {[%emt 0:00:14]} Kc7 {[%emt 0:00:00]} 46. Rd3 {[%emt 0:00:06]} Rd6 {[%emt 0:00:07]} (46... h4 $142) 47. Rc3+ {[%emt 0:00:01]} Kd7 {[%emt 0:00:02]} 48. Kg2 {[%emt 0:00:04]} Ra6 {[%emt 0:00:04]} 49. a4 {[%emt 0:00:02]} Rd6 {[%emt 0:00:02]} 50. Kh3 {[%emt 0:00:01]} Rg4 {[%emt 0:00:03]} 51. Kg2 {[%emt 0:00:02]} Rg6 $1 {[%emt 0:00:01]} 52. Kh3 Rg4 $1 53. Kg2 {[%emt 0:00:02]} Rg6 $1 {[%emt 0:00:01]} 54. Rc5 {[%emt 0:00:03]} Rg8 {[%emt 0:00:04]} 55. Kh3 {[%emt 0:00:02]} Rg4 {[%emt 0:00:01]} 56. Rb5 {[%emt 0:00:03]} (56. a5 $18) 56... Kc7 {[%emt 0:00:03]} 57. Re3 {[%emt 0:00:03]} Rc6 {[%emt 0:00:02] Inhibits Rc5.} 58. Re2 {[%emt 0:00:02]} ({White should play} 58. c4 $16 dxc4 59. bxc4) 58... a6 {[%emt 0:00:04]} 59. Rb4 {[%emt 0:00:02]} Kd6 {[%emt 0:00:02]} (59... Rc3 $11 {remains equal.}) 60. Rb8 {[%emt 0:00:03]} ({White should try} 60. Rb7 $16) 60... Rg7 $2 {[%emt 0:00:02] This costs Black the game.} (60... h4 $1 $14) 61. Rd8+ {[%emt 0:00:04]} Kc7 {[%emt 0:00:02]} 62. Rh8 {[%emt 0:00:03]} h4 {[%emt 0:00:08]} 63. Rxh4 {[%emt 0:00:02]} ({Don't do} 63. Kxh4 Rg4+ 64. Kh5 Rg7) 63... Kb6 $2 {[%emt 0:00:01]} (63... Kd7 {might work better.} 64. Rh6 Rg8) 64. Rh6 $18 {[%emt 0:00:02]} Re7 {[%emt 0:00:02]} 65. Rf6 {[%emt 0:00:03]} Rcc7 $2 {[%emt 0:00:03]} (65... Ka5 66. Kh4 Rec7) 66. Rfxe6+ {[%emt 0:00:01] White is clearly winning.} Rxe6 {[%emt 0:00:01]} 67. Rxe6+ {[%emt 0:00:01]} Kc5 {[%emt 0:00:02]} 68. Kg2 {[%emt 0:00:04]} Kb4 {[%emt 0:00:00]} 69. Re2 {[%emt 0:00:02]} Ka3 {[%emt 0:00:02]} 70. h4 {[%emt 0:00:05]} Rh7 {[%emt 0:00:02] Weighted Error Value: White=0.42/Black=0.35} 1-0

[Event "Women Accentus DAQ Blitz 2022"]
[Site "Biel"]
[Date "2022.07.17"]
[Round "6.3"]
[White "Ciarletta, Iris"]
[Black "Avilova, Yulia"]
[Result "1-0"]
[ECO "D32"]
[WhiteElo "1717"]
[BlackElo "1646"]
[Annotator "NA COMBH"]
[PlyCount "133"]
[EventDate "2022.07.17"]
[EventType "tourn"]
[EventCountry "SUI"]
[SourceTitle "playchess.com"]
[Source "ChessBase"]
[SourceQuality "1"]
[TimeControl "180+2"]

1. d4 {[%emt 0:00:02]} d5 {[%emt 0:00:03]} 2. c4 {[%emt 0:00:01]} e6 {[%emt 0:00:00]} 3. Nf3 {[%emt 0:00:01]} Nf6 {[%emt 0:00:02]} 4. Nc3 {[%emt 0:00:03]} c5 {[%emt 0:00:01]} 5. cxd5 {[%emt 0:00:04]} exd5 {[%emt 0:00:01]} 6. dxc5 {[%emt 0:00:02]} Bxc5 {[%emt 0:00:02]} 7. e3 {[%emt 0:00:01]} Nc6 {[%emt 0:00:01]} 8. Bb5 {[%emt 0:00:02]} a6 {[%emt 0:00:04]} 9. Bxc6+ {[%emt 0:00:02]} bxc6 {[%emt 0:00:01]} 10. h3 {[%emt 0:00:02]} O-O {[%emt 0:00:02]} 11. O-O {[%emt 0:00:02]} Bb7 {[%emt 0:00:02]} 12. Bd2 {[%emt 0:00:14]} Qc7 {[%emt 0:00:05]} 13. Ne2 {[%emt 0:00:03]} Rfd8 {[%emt 0:00:02]} 14. Qc2 {[%emt 0:00:04]} Bb6 {[%emt 0:00:08]} 15. Bc3 {[%emt 0:00:04]} Ne4 {[%emt 0:00:07]} 16. Be5 {[%emt 0:00:08]} Qe7 {[%emt 0:00:07]} 17. Bh2 {[%emt 0:00:09]} Rac8 {[%emt 0:00:02]} 18. Nc3 {[%emt 0:00:08]} Nf6 {[%emt 0:00:07]} 19. Rfe1 {[%emt 0:00:04]} c5 {[%emt 0:00:13]} 20. Rad1 {[%emt 0:00:05]} Qf8 {[%emt 0:00:09]} 21. Qb3 {[%emt 0:00:13]} Rc6 {[%emt 0:00:17]} 22. Na4 {[%emt 0:00:16]} c4 {[%emt 0:00:10]} 23. Qc3 {[%emt 0:00:05]} Ba7 {[%emt 0:00:05]} 24. Nd4 {[%emt 0:00:05]} Rcc8 {[%emt 0:00:04]} 25. Qc2 {[%emt 0:00:11]} Qb4 {[%emt 0:00:17]} 26. Nc3 {[%emt 0:00:07]} Ne4 {[%emt 0:00:27]} 27. Nxe4 {[%emt 0:00:10]} dxe4 {[%emt 0:00:01]} 28. Nf5 {[%emt 0:00:06]} Qc5 {[%emt 0:00:22]} 29. Ng3 {[%emt 0:00:14]} h6 {[%emt 0:00:10]} 30. Rxd8+ {[%emt 0:00:17]} Rxd8 {[%emt 0:00:01]} 31. Rd1 {[%emt 0:00:01]} Rd5 {[%emt 0:00:09]} 32. Ne2 {[%emt 0:00:04]} Rd3 {[%emt 0:00:20]} 33. Nf4 {[%emt 0:00:03]} Rxd1+ {[%emt 0:00:04]} 34. Qxd1 {[%emt 0:00:01]} Qc6 {[%emt 0:00:06]} 35. Bg3 {[%emt 0:00:05]} Kh7 {[%emt 0:00:06]} 36. Ne2 {[%emt 0:00:07]} a5 {[%emt 0:00:03]} 37. Nc3 {[%emt 0:00:01]} a4 {[%emt 0:00:01]} 38. Qxa4 {[%emt 0:00:03]} Qxa4 {[%emt 0:00:01]} 39. Nxa4 {[%emt 0:00:01]} Bc6 {[%emt 0:00:02]} 40. Nc3 {[%emt 0:00:01]} Bb6 {[%emt 0:00:05]} 41. Kf1 {[%emt 0:00:03]} f5 {[%emt 0:00:01]} 42. Be5 {[%emt 0:00:03]} Bd8 {[%emt 0:00:03]} 43. Ne2 {[%emt 0:00:09]} g5 {[%emt 0:00:01]} 44. Nd4 {[%emt 0:00:01]} Bb7 {[%emt 0:00:05]} 45. Nxf5 {[%emt 0:00:03]} Kg6 {[%emt 0:00:03]} 46. Nd4 {[%emt 0:00:04]} Ba6 {[%emt 0:00:04]} 47. Ke1 {[%emt 0:00:01]} Ba5+ {[%emt 0:00:03]} 48. Kd1 {[%emt 0:00:03]} c3 {[%emt 0:00:02]} 49. bxc3 {[%emt 0:00:04]} Bxc3 {[%emt 0:00:01]} 50. Kc2 {[%emt 0:00:08]} Ba1 {[%emt 0:00:03]} 51. Nc6 {[%emt 0:00:09]} Bxe5 {[%emt 0:00:03]} 52. Nxe5+ {[%emt 0:00:01]} Kf5 {[%emt 0:00:00]} 53. Nd7 {[%emt 0:00:04]} Bf1 {[%emt 0:00:02]} 54. g3 {[%emt 0:00:05]} Bxh3 {[%emt 0:00:02]} 55. Nc5 {[%emt 0:00:01]} Ke5 {[%emt 0:00:03]} 56. Kd2 {[%emt 0:00:03]} Bc8 {[%emt 0:00:03]} 57. Nb3 {[%emt 0:00:04]} Kf5 {[%emt 0:00:01]} 58. Nd4+ {[%emt 0:00:01]} Ke5 {[%emt 0:00:01]} 59. a3 {[%emt 0:00:01]} h5 {[%emt 0:00:03]} 60. Nc6+ {[%emt 0:00:02]} Kd6 {[%emt 0:00:01]} 61. Nd4 {[%emt 0:00:01]} h4 {[%emt 0:00:02]} 62. gxh4 {[%emt 0:00:05]} gxh4 {[%emt 0:00:01]} 63. Ne2 {[%emt 0:00:01]} h3 {[%emt 0:00:01]} 64. Ng3 {[%emt 0:00:01]} h2 {[%emt 0:00:03]} 65. Nxe4+ {[%emt 0:00:02]} Ke5 {[%emt 0:00:02]} 66. Ng3 {[%emt 0:00:01]} Bb7 {[%emt 0:00:01]} 67. Ke2 {[%emt 0:00:04]} 1-0

[Event "Women Accentus DAQ Blitz 2022"]
[Site "Biel"]
[Date "2022.07.17"]
[Round "6.4"]
[White "Tamrazyan, Gohar"]
[Black "Zhuang, Yongzhe"]
[Result "0-1"]
[ECO "D00"]
[WhiteElo "1916"]
[BlackElo "1838"]
[Annotator "TA"]
[PlyCount "80"]
[EventDate "2022.07.17"]
[EventType "tourn"]
[EventCountry "SUI"]
[SourceTitle "playchess.com"]
[Source "ChessBase"]
[SourceQuality "1"]
[TimeControl "180+2"]

{[%evp 9,80,0,0,0,0,0,0,0,0,0,25,7,21,21,17,20,16,18,25,15,10,0,12,-13,39,-2,92,85,83,66,56,0,-16,-255,-271,-582,-581,-542,-307,-325,-312,-368,-358,-670,-649,-694,-497,-496,-414,-404,-407,-398,-393,-394,-345,-620,-236,-330,-153,-345,-323,-437,-428,-730,-725,-1025,-900,-979,-744,-660,0,-5202,-5127]} 1. d4 {[%emt 0:00:01]} d5 {[%emt 0:00:01]} 2. Nc3 {[%emt 0:00:01]} Nf6 {[%emt 0:00:03]} 3. Bf4 {[%emt 0:00:01]} c5 {[%emt 0:00:03]} 4. e4 {[%emt 0:00:02]} Nxe4 {[%emt 0:00:19]} 5. Nxe4 {[%emt 0:00:01]} dxe4 {[%emt 0:00:02]} 6. dxc5 {D00: 1 d4 d5: Unusual lines.} Qa5+ {[%emt 0:00:07]} 7. c3 {[%emt 0:00:01]} Qxc5 {[%emt 0:00:15]} 8. Qa4+ {[%emt 0:00:01] The position is equal.} Nc6 {[%emt 0:00:08]} 9. Qxe4 {[%emt 0:00:02]} Bf5 {[%emt 0:00:09]} 10. Qa4 {[%emt 0:00:00]} e5 {[%emt 0:00:05]} 11. Be3 {[%emt 0:00:35]} Qa5 {[%emt 0:00:08]} 12. Qxa5 {[%emt 0:00:07]} Nxa5 {[%emt 0:00:01]} 13. O-O-O {[%emt 0:00:10]} Be7 {[%emt 0:00:10]} 14. Nf3 {[%emt 0:00:06]} f6 {[%emt 0:00:02]} 15. Bb5+ {[%emt 0:00:14]} Nc6 {[%emt 0:00:04] [#]} 16. Rd2 $146 {[%emt 0:00:13]} ({Predecessor:} 16. Bc4 Bd7 17. Rd2 O-O-O 18. Rhd1 Kc7 19. b4 b6 20. Kb2 g5 21. Kb3 Bc8 22. a4 Rxd2 23. Rxd2 {0-1 (33) Solakian Van Eyll,J (2248)-Duboue,P (2426) Chartres 2022}) 16... O-O {[%emt 0:00:09]} (16... Be6 $11) 17. Rhd1 {[%emt 0:00:00]} a6 {[%emt 0:00:03]} (17... Kf7 $11 {keeps the balance.}) 18. Bc4+ $16 {[%emt 0:00:08]} Kh8 {[%emt 0:00:02]} 19. Nh4 {[%emt 0:00:10]} Bc8 {[%emt 0:00:16]} 20. f4 {[%emt 0:00:25]} (20. Bd5 $14) 20... exf4 $11 {[%emt 0:00:15]} 21. Bxf4 {[%emt 0:00:01] [#] White is now going downhill.} (21. Bb6 $11 {and White stays safe.}) 21... g5 $19 {[%emt 0:00:07]} 22. Bxg5 {[%emt 0:00:42]} (22. Bg3 {is more resistant.} gxh4 23. Bxh4) 22... fxg5 {[%emt 0:00:02]} 23. Nf3 {[%emt 0:00:01]} Bg4 {[%emt 0:00:07]} 24. Bd5 {[%emt 0:00:07]} Bc5 {[%emt 0:00:09]} 25. Kb1 {[%emt 0:00:03]} Be3 {[%emt 0:00:30]} 26. Rd3 $2 {[%emt 0:00:03]} (26. Re2 Bf4 27. Ree1) 26... Bf5 {[%emt 0:00:02]} 27. Kc2 {[%emt 0:00:12]} Bxd3+ {[%emt 0:00:02]} 28. Rxd3 {[%emt 0:00:01]} Bc5 {[%emt 0:00:05]} 29. Nxg5 {[%emt 0:00:04]} Rf2+ {[%emt 0:00:05]} 30. Rd2 {[%emt 0:00:08]} Rxd2+ {[%emt 0:00:06]} 31. Kxd2 {[%emt 0:00:01]} Ne5 {[%emt 0:00:09] [#] Threatens to win with ...Rd8.} 32. b4 $2 {[%emt 0:00:05]} (32. Kc2) 32... Ba7 $2 {[%emt 0:00:02]} (32... Rd8 33. bxc5 Rxd5+ 34. Kc2 Rxc5) 33. Kc2 {[%emt 0:00:07]} Kg7 {[%emt 0:00:04]} (33... Rb8 $19 {is more deadly. ...Kg7 is the strong threat.} 34. Ne6 b5) 34. Ne6+ $2 {[%emt 0:00:01]} (34. Bxb7 $17 {only move.} Rg8 35. Ne6+ Kf6 36. Nc7) 34... Kf6 {[%emt 0:00:02]} 35. c4 {[%emt 0:00:03]} Rc8 {[%emt 0:00:04]} 36. h3 {[%emt 0:00:04]} (36. Kb3 $142) 36... Nxc4 {[%emt 0:00:03]} 37. Kb3 {[%emt 0:00:03]} Nd2+ {[%emt 0:00:02]} 38. Ka3 {[%emt 0:00:01]} Rc3+ {[%emt 0:00:03]} 39. Kb2 {[%emt 0:00:00]} Rc8 $2 {[%emt 0:00:02]} (39... Rg3 $19 40. Nc5 a5) 40. Bb3 $2 {[%emt 0:00:05][%mdl 8192]} (40. Ka3 $11 Ke5 41. Bxb7) 40... Nxb3 {[%emt 0:00:01] Weighted Error Value: White=0.89/Black=0.59} 0-1

[Event "Women Accentus DAQ Blitz 2022"]
[Site "Biel"]
[Date "2022.07.17"]
[Round "7.1"]
[White "Cornileau, Juliette"]
[Black "Tamrazyan, Gohar"]
[Result "0-1"]
[ECO "D34"]
[WhiteElo "1900"]
[BlackElo "1916"]
[Annotator "TA"]
[PlyCount "130"]
[EventDate "2022.07.17"]
[EventType "tourn"]
[EventCountry "SUI"]
[SourceTitle "playchess.com"]
[Source "ChessBase"]
[SourceQuality "1"]
[TimeControl "180+2"]

{[%evp 21,130,35,37,0,39,5,31,31,57,54,55,69,98,41,90,93,92,74,97,100,102,102,96,85,96,85,112,99,117,100,81,64,111,118,109,91,97,53,82,-22,-11,0,25,0,0,0,0,0,0,0,0,0,0,0,0,0,0,0,0,0,0,0,0,-8,-8,-10,-8,-38,0,-87,-8,-152,-152,-285,-281,-798,-786,-742,-689,-2094,-787,-389,-41,-41,-48,-294,-118,-835,-661,-29965,-29964,-5704,-6693,-29974,-29975,-29966,-6081,-29979,-29980,-29980,-29976,-29979,0,-29980,-29981,-29981,-29982,-29982,-29983,-29988,-29987]} 1. d4 {[%emt 0:00:01]} d5 2. c4 {[%emt 0:00:02]} e6 {[%emt 0:00:00]} 3. Nc3 {[%emt 0:00:01]} c5 {[%emt 0:00:01]} 4. cxd5 {[%emt 0:00:04]} exd5 {[%emt 0:00:01]} 5. Nf3 {[%emt 0:00:02]} Nc6 {[%emt 0:00:00]} 6. g3 {[%emt 0:00:01]} Nf6 {[%emt 0:00:01]} 7. Bg2 {[%emt 0:00:04]} Be7 {[%emt 0:00:01]} 8. O-O {[%emt 0:00:01]} O-O {[%emt 0:00:01]} 9. Bg5 {[%emt 0:00:07]} c4 {[%emt 0:00:02]} 10. Ne5 {[%emt 0:00:09]} Be6 {[%emt 0:00:01]} 11. Nxc6 {[%emt 0:00:28]} bxc6 {[%emt 0:00:01]} 12. Qc2 {[%emt 0:00:16] D34: Tarrasch Defence: 6 g3 Nf6 7 Bg2 Be7.} Qb6 {[%emt 0:00:23]} 13. Rad1 {[%emt 0:00:09] [#]} Rad8 $146 {[%emt 0:00:18]} ({Predecessor:} 13... Rab8 14. Na4 Qa5 15. Nc3 Qb6 16. Na4 {½-½ (16) Prokop,C (1976)-Mursaniow,J (1859) Niederrhein 1995}) 14. Na4 {[%emt 0:00:07] White is slightly better.} Qa5 {[%emt 0:00:12]} 15. b3 {[%emt 0:00:09]} cxb3 {[%emt 0:00:43]} 16. axb3 {[%emt 0:00:04]} Qc7 {[%emt 0:00:13]} 17. Bf4 {[%emt 0:00:13]} (17. Nc5 $16) 17... Bd6 {[%emt 0:00:02]} (17... Qd7 $14) 18. Bxd6 $16 {[%emt 0:00:01]} Qxd6 {[%emt 0:00:04]} 19. Rc1 {[%emt 0:00:14]} Bd7 {[%emt 0:00:10]} 20. Nc5 {[%emt 0:00:03] And now Nb7 would win.} Rc8 {[%emt 0:00:14]} 21. Ra1 {[%emt 0:00:07]} Rc7 {[%emt 0:00:06]} 22. Ra5 {[%emt 0:00:16]} Ra8 {[%emt 0:00:19]} 23. Rfa1 {[%emt 0:00:06]} Be8 {[%emt 0:00:01]} 24. Bh3 {[%emt 0:00:09]} Nd7 {[%emt 0:00:09]} 25. Bxd7 {[%emt 0:00:09]} Bxd7 {[%emt 0:00:02]} 26. Kg2 {[%emt 0:00:12] Against Bh3+} Qf6 {[%emt 0:00:05]} (26... Qe7 $14 {should be considered.}) 27. Nxd7 {[%emt 0:00:03]} Rxd7 {[%emt 0:00:01]} 28. Ra6 {[%emt 0:00:04]} Qxd4 {[%emt 0:00:13]} 29. Qxc6 {[%emt 0:00:13]} Rdd8 {[%emt 0:00:08]} 30. Rc1 {[%emt 0:00:03]} ({Better is} 30. R1a4 $16 Qe5 31. e3) 30... Qe4+ $11 {[%emt 0:00:04]} 31. Kg1 {[%emt 0:00:08]} h6 {[%emt 0:00:03]} (31... Qxe2 $5 {[%cal Rd5d4]} 32. Qb7 h6 33. Rxa7 Rxa7 34. Qxa7 d4 $11) 32. Qb7 {[%emt 0:00:09]} Qxe2 {[%emt 0:00:06]} 33. Rxa7 {[%emt 0:00:03]} Rxa7 {[%emt 0:00:03]} 34. Qxa7 {[%emt 0:00:01][%mdl 4096] Endgame KQR-KQR} Qb2 {[%emt 0:00:04]} 35. Qc7 {[%emt 0:00:09]} Rf8 {[%emt 0:00:03]} 36. Qc2 {[%emt 0:00:02]} Qxc2 {[%emt 0:00:05]} 37. Rxc2 {[%emt 0:00:01] KR-KR} Rb8 {[%emt 0:00:02]} 38. Rd2 {[%emt 0:00:01]} Rb5 {[%emt 0:00:01]} 39. Rd3 {[%emt 0:00:01]} Kf8 {[%emt 0:00:02]} 40. Kg2 Ke7 {[%emt 0:00:00]} 41. Kf3 {[%emt 0:00:02]} Ke6 42. Re3+ {[%emt 0:00:06]} Kd6 {[%emt 0:00:02]} 43. Rd3 {[%emt 0:00:00]} Ke5 {[%emt 0:00:02]} 44. Ke3 {[%emt 0:00:02] Against d4+} d4+ {[%emt 0:00:05]} 45. Ke2 {[%emt 0:00:04]} (45. Rxd4 $11 {keeps the balance.} Rxb3+ 46. Rd3 Rxd3+ 47. Kxd3) 45... g5 {[%emt 0:00:04]} ({Black should play} 45... h5 $17) 46. h3 {[%emt 0:00:03] [#]} (46. g4 $1 $11 {was the only way to keep the balance.}) 46... f5 $1 $17 {[%emt 0:00:02]} 47. Kf3 {[%emt 0:00:03] [#]} (47. g4 $17) 47... h5 $1 $19 {[%emt 0:00:02]} 48. h4 $2 {[%emt 0:00:01]} (48. Ke2) 48... g4+ {[%emt 0:00:02]} 49. Ke2 {[%emt 0:00:02]} Ke4 {[%emt 0:00:02]} 50. Kd2 {[%emt 0:00:01]} f4 {[%emt 0:00:03]} (50... Ra5 $142 51. Ke2 Ra3) 51. gxf4 {[%emt 0:00:01]} Rb4 $2 {[%emt 0:00:05]} (51... Ra5 $19 {( -> ...Ra2+)} 52. Ke2 Ra2+ 53. Rd2 d3+ 54. Ke1 Ra3) 52. Ke2 $15 {[%emt 0:00:05]} Kxf4 {[%emt 0:00:01]} 53. Kd2 $2 {[%emt 0:00:01]} (53. f3 $1 $15) 53... Ke4 {[%emt 0:00:02]} (53... Rb5 $19 {and Black stays clearly on top. Hoping for ...Ke4.} 54. Ke2 (54. Rxd4+ $2 Kf3 $19) 54... Re5+ 55. Kd2 Ke4) 54. Rg3 $2 {[%emt 0:00:01][%mdl 8192]} (54. Ke2 $17) 54... Rb6 {[%emt 0:00:02]} 55. Kc2 {[%emt 0:00:02]} Rf6 {[%emt 0:00:02]} 56. Rg2 {[%emt 0:00:01]} Kf3 {[%emt 0:00:01]} 57. Rg3+ {[%emt 0:00:01]} Kxf2 {[%emt 0:00:01]} 58. Rd3 {[%emt 0:00:01]} Rd6 {[%emt 0:00:01]} (58... Rc6+ $142 59. Kb2 g3 60. Rxd4 g2 61. Rd2+ Kg3 62. Rd1 Kxh4 63. Ka3 Rg6 64. Rg1 Kg3 65. Rc1 h4 66. Rc3+ Kh2 67. Rc2 h3 68. Kb4 Kh1 69. Rc5 g1=Q 70. Rd5 Qb6+ 71. Ka3 Rg1 72. Kb2 Qc6 73. Ka3 Qxd5 74. Kb4 Rg4+ 75. Ka3 Qa5+ 76. Kb2 Rg2+ 77. Kc1 Qe1#) 59. b4 {[%emt 0:00:01]} g3 {[%emt 0:00:04][%cal Bg4g3,Bg3g2][%mdl 32]} 60. Rd2+ {[%emt 0:00:03]} Kf1 {[%emt 0:00:02]} 61. Rd1+ {[%emt 0:00:02]} Kf2 {[%emt 0:00:02]} 62. Rd2+ {[%emt 0:00:01]} Kg1 {[%emt 0:00:02] Black mates.} 63. Rd1+ {[%emt 0:00:01]} Kh2 {[%emt 0:00:01]} 64. Rd2+ {[%emt 0:00:06]} g2 {[%emt 0:00:01]} 65. Kd1 {[%emt 0:00:01]} Kh1 {[%emt 0:00:02] Weighted Error Value: White=0.86/Black=0.57} 0-1